Cogmind - Beta 12 @@@ ROGUE MODE // 2023.07.23 @ 20:58:28 Player: Bathcat Result: Destroyed by as-75719 with Assembled Blade Performance ------------- Evolutions (0) 0 Regions Visited (4) 800 Robots Destroyed (19) 95 Value Destroyed (334) 334 Prototype IDs (23) 460 Alien Tech Used (0) 0 Bonus (300) 300 TOTAL SCORE: 1989 Bonus ------- Aligned with FarCom 300 Cogmind --------- Core Integrity 0/250 Matter 125/300 Energy 100/100 System Corruption 0% Temperature Cool (6) Movement Walking (330) Ox3 Location -9/Mines Parts ------- > --- POWER (1) -------- (None) > --- PROPULSION (2) --- Aluminum Leg > --- UTILITY (2) ------ Medium Storage Unit Large Storage Unit > --- WEAPON (2) ------- Assault Rifle Light Cannon > --- INVENTORY (15) --- Sensor Array Signal Interpreter Cloak of Protection PSU Rigger Medium Laser Small Laser Mining Laser Peak State ------------ > --- POWER ------------ Ion Engine > --- PROPULSION ------- Aluminum Leg Aluminum Leg > --- UTILITY ---------- Medium Storage Unit Cloak of Protection > --- WEAPON ----------- Rocket Launcher Mining Laser > --- INVENTORY -------- Aluminum Leg Large Storage Unit PSU Rigger Medium Laser Assault Rifle Light Cannon AWS/Autocannon [Rating: 19] Favorites ----------- Power Ion Engine Engine Ion Engine Propulsion Aluminum Leg Leg Aluminum Leg Utility Medium Storage Unit Device Cloak of Protection Storage Medium Storage Unit Processor Visual Processing Unit Weapon Mining Laser Energy Gun Medium Laser Ballistic Gun Light Assault Rifle Ballistic Cannon Light Cannon Launcher Rocket Launcher Special Weapon Mining Laser Build | -11 -10 -10 -10 -9 ------- Run | Jun Mat Min Exi Min Slots Evolved . | . . . . . Power . | . . . . . Propulsion . | . . . . . Utility . | . . . . . Weapon . | . . . . . Parts Attached 20 | 1 10 3 2 4 Power 2 | . 2 . . . Engine 2 | . 2 . . . Core . | . . . . . Reactor . | . . . . . Propulsion 2 | . 1 . . 1 Treads . | . . . . . Leg 2 | . 1 . . 1 Wheel . | . . . . . Hover . | . . . . . Flight . | . . . . . Utility 8 | 1 4 . 2 1 Device 4 | 1 1 . 2 . Storage 2 | . 1 . . 1 Processor 2 | . 2 . . . Hackware . | . . . . . Protection . | . . . . . Artifact . | . . . . . Weapon 8 | . 3 3 . 2 Energy Gun 2 | . 2 . . . Energy Cannon . | . . . . . Ballistic Gun 1 | . . . . 1 Ballistic Cannon 1 | . . . . 1 Launcher 3 | . 1 2 . . Special Weapon 1 | . . 1 . . Impact Weapon . | . . . . . Slashing Weapon . | . . . . . Piercing Weapon . | . . . . . Special Melee Weapon . | . . . . . Unidentified Prototypes 2 | . . . 2 . Parts Lost 5 | . 2 . . 3 Power 2 | . 1 . . 1 Propulsion 1 | . . . . 1 Utility 1 | . 1 . . . Weapon 1 | . . . . 1 Highest Loss Streak 3 | . 1 . . 3 To Critical Strikes . | . . . . . Average Slot Usage (%) 96 | . 93 100 98 81 Engine 13 | . 13 14 14 14 Leg 27 | . 28 28 28 18 Device 2 | . 2 . 3 . Storage 14 | . 14 14 14 20 Processor 8 | . 6 14 8 . Energy Gun 4 | . 13 2 . . Ballistic Gun 2 | . 7 . . 6 Launcher 11 | . 6 14 14 8 Special Weapon 8 | . . 12 14 6 Naked Turns . | . . . . . Heaviest Build 28 | 13 20 20 28 20 Greatest Support 20 | 20 20 20 20 20 Greatest Overweight (x) 1 | . . . 1 . Average Overweight (x) . | . . . . . Largest Inventory Capacity 15 | 8 10 10 10 15 Average Capacity 9 | 8 8 10 10 12 Most Carried 10 | 6 10 10 10 10 Average Carried 9 | 6 7 9 9 8 Final Capacity 15 | 8 10 10 10 15 Final Carried 10 | 6 10 10 10 7 Class Distribution -------------------- 100% | Mutant Dominant Class ---------------- Mutant | -10/Materials Mutant | -10/Mines Mutant | -10/Exiles Mutant | -9/Mines Resources | -11 -10 -10 -10 -9 ----------- Run | Jun Mat Min Exi Min Matter Collected 422 | 203 167 52 . . Remotely . | . . . . . Salvage Created 542 | 87 379 26 . 50 Parts 38 | 6 27 5 . . Haulers Intercepted . | . . . . . Recyclers Shooed . | . . . . . Parts Field Recycled . | . . . . . Retrieved Matter . | . . . . . Parts Self-Destructed . | . . . . . Prevented . | . . . . . Kills | -11 -10 -10 -10 -9 ------- Run | Jun Mat Min Exi Min Combat Hostiles Destroyed 28 | . 11 3 . 14 Guns 10 | . 8 . . 2 Cannons 2 | . . . . 2 AOE 16 | . 3 3 . 10 Classes Destroyed 6 | 2 3 . . 1 Tunneler 1 | 1 . . . . Recycler 2 | 1 1 . . . Watcher 2 | . 2 . . . Swarmer 9 | . 6 3 . . Grunt 5 | . 5 . . . Assembled 14 | . . . . 14 Best Kill Streak 14 | 2 4 3 . 14 Combat Bots Only 14 | . 3 3 . 14 Max Kills in Single Turn 5 | 1 2 2 . 5 Gunslinging . | . . . . . Exploded 5 | . 2 2 . 5 Melee . | . . . . . Uniques/NPCs Destroyed . | . . . . . Combat | -11 -10 -10 -10 -9 -------- Run | Jun Mat Min Exi Min Damage Taken 965 | . 458 66 . 441 Core 261 | . 97 20 . 144 Absorbed by Shields . | . . . . . Regen/Repaired (Parts) 34 | . 34 . . . Core Remaining (%) 100 | 100 . . . . Volleys Fired 76 | 5 42 10 . 19 Largest 2 | 2 2 1 . 2 Hottest 100 | 60 70 100 . 100 Shots Fired 125 | 10 77 10 . 28 Gun 93 | 10 74 . . 9 Cannon 12 | . . . . 12 Launcher 10 | . 3 2 . 5 Special 10 | . . 8 . 2 Kinetic 61 | 5 35 . . 21 Thermal 54 | 5 39 8 . 2 Explosive 10 | . 3 2 . 5 Electromagnetic . | . . . . . Robot Hit Streak 19 | 4 19 1 . 4 Robot Miss Streak 6 | 1 6 2 . 3 Penetration Max . | . . . . . Secondary Targets . | . . . . . Shots Hit Robots 70 | 7 47 1 . 15 Core Hits 49 | 3 22 3 . 21 Critical Kills . | . . . . . Critical Parts Destroyed . | . . . . . Critical Strikes 2 | . 2 . . . Burn 2 | . 2 . . . Melee Attacks . | . . . . . Impact . | . . . . . Slashing . | . . . . . Piercing . | . . . . . Sneak Attacks . | . . . . . Combat Hostiles . | . . . . . Follow-up Attacks . | . . . . . Damage Inflicted 1946 | 73 754 110 . 1009 Guns 594 | 73 469 . . 52 Cannons 126 | . . . . 126 Explosions 1226 | . 285 110 . 831 Melee . | . . . . . Ramming . | . . . . . Kinetic 368 | 14 176 . . 178 Thermal 475 | 59 293 . . 123 Explosive 1103 | . 285 110 . 708 Electromagnetic . | . . . . . Impact . | . . . . . Slashing . | . . . . . Piercing . | . . . . . Highest Corruption . | . . . . . Average Corruption . | . . . . . Corruption Purged . | . . . . . Corruption Blocked . | . . . . . Overload Shots . | . . . . . Overflow Damage 17 | . 6 . . 11 Projectiles . | . . . . . Explosions 17 | . 6 . . 11 Melee . | . . . . . Knockbacks 2 | . . . . 2 Impact . | . . . . . Kinetic 2 | . . . . 2 Secondary . | . . . . . Self-Inflicted Damage 130 | . . 41 . 89 Shots 4 | . . 1 . 3 Rammed . | . . . . . Targets Rammed . | . . . . . Kicked . | . . . . . Crushed . | . . . . . Highest Temperature 272 | 20 272 66 . 26 Average Temperature 79 | 15 105 32 . 12 Received Heat Transfer 266 | . 186 . . 80 Siege Activations . | . . . . . Robots Corrupted . | . . . . . Combat Hostiles . | . . . . . Parts Fried . | . . . . . Impact Corruptions . | . . . . . Robots Melted . | . . . . . Combat Hostiles . | . . . . . Parts Melted 1 | . 1 . . . Heat Transferred 1311 | 125 1036 . . 150 Parts Sabotaged . | . . . . . Parts Stolen . | . . . . . Parts Stripped . | . . . . . Power Chain Reactions . | . . . . . Missiles Intercepted . | . . . . . Alert | -11 -10 -10 -10 -9 ------- Run | Jun Mat Min Exi Min Peak Influence 279 | 10 279 147 . 36 Initial 56 | . 6 56 . . Average 82 | 7 105 62 . 18 Maximum Alert Level 1 | . 1 . . . Low Security (%) 98 | 100 97 100 . 100 Level 1 1 | . 2 . . . Level 2 . | . . . . . Level 3 . | . . . . . Level 4 . | . . . . . Level 5 . | . . . . . High Security . | . . . . . Max Security . | . . . . . Squads Dispatched 2 | . 2 . . . Investigation 1 | . 1 . . . Extermination . | . . . . . Reinforcement 1 | . 1 . . . Assault . | . . . . . Garrison . | . . . . . Intercept . | . . . . . Searches Triggered . | . . . . . Construction Impeded . | . . . . . Haulers Reinforced . | . . . . . Active Scanning Responses . | . . . . . Cargo Convoy Interrupts . | . . . . . Stealth | -11 -10 -10 -10 -9 --------- Run | Jun Mat Min Exi Min Distress Signals 1 | . 1 . . . Communications Jammed . | . . . . . Distress Signals . | . . . . . Times Spotted 38 | . 17 3 . 18 Peak Tracking Total 8 | . 4 3 . 8 Tactical Retreats 1 | . . . . 1 Traps | -11 -10 -10 -10 -9 ------- Run | Jun Mat Min Exi Min Traps Triggered 1 | . 1 . . . Indirectly . | . . . . . Trap Hack Attempts . | . . . . . Triggered . | . . . . . Disarmed . | . . . . . Reprogrammed . | . . . . . Reused . | . . . . . Traps Extracted . | . . . . . Installed . | . . . . . Triggered . | . . . . . Machines | -11 -10 -10 -10 -9 ---------- Run | Jun Mat Min Exi Min Machines Disabled 1 | . . . . 1 Max in Single Turn 1 | . . . . 1 Machines Repaired . | . . . . . Machines Sabotaged . | . . . . . Overloaded Fab Kills . | . . . . . Hacking | -11 -10 -10 -10 -9 --------- Run | Jun Mat Min Exi Min Machines Accessed 8 | . 3 . 5 . Terminals 2 | . 2 . . . Fabricators . | . . . . . Repair Stations 1 | . 1 . . . Recycling Units . | . . . . . Scanalyzers . | . . . . . Garrison Access . | . . . . . Total Hacks 58 | . 8 . 50 . Successful 54 | . 4 . 50 . Failed 4 | . 4 . . . Catastrophic 1 | . 1 . . . Database Lockouts . | . . . . . Manual 5 | . . . 5 . Terminals 5 | . 5 . . . Fabricators . | . . . . . Repair Stations 3 | . 3 . . . Recycling Units . | . . . . . Scanalyzers . | . . . . . Garrison Access . | . . . . . Terminal Hacks 52 | . 2 . 50 . Record 49 | . . . 49 . Emergency Access Points 1 | . 1 . . . Hauler Manifests 1 | . 1 . . . EX-Prototype ID Bank 1 | . . . 1 . Fabricator Hacks . | . . . . . Repair Station Hacks 2 | . 2 . . . Scan Component 1 | . 1 . . . Repair 1 | . 1 . . . Recycling Unit Hacks . | . . . . . Scanalyzer . | . . . . . Garrison Access Hacks . | . . . . . Unauthorized Hacks . | . . . . . Terminals . | . . . . . Fabricators . | . . . . . Repair Stations . | . . . . . Recycling Units . | . . . . . Scanalyzers . | . . . . . Garrison Access . | . . . . . Data Cores Recovered . | . . . . . Used . | . . . . . Hacking Detections 1 | . 1 . . . Full Trace Events . | . . . . . Feedback Events . | . . . . . Feedback Blocked . | . . . . . Robot Schematics Acquired . | . . . . . Robots Built . | . . . . . Authchips . | . . . . . Time . | . . . . . Total Robot Build Rating . | . . . . . Part Schematics Acquired . | . . . . . Parts Built . | . . . . . Authchips . | . . . . . Time . | . . . . . Total Part Build Rating . | . . . . . Parts Repaired 1 | . 1 . . . Time 26 | . 26 . . . Parts Recycled . | . . . . . Recycled Matter . | . . . . . Retrieved Matter . | . . . . . Retrieved Components . | . . . . . Parts Scanalyzed . | . . . . . Part Schematics Acquired . | . . . . . Parts Damaged . | . . . . . Bothacking | -11 -10 -10 -10 -9 ------------ Run | Jun Mat Min Exi Min Used RIF Installer . | . . . . . Robots Hacked . | . . . . . Non-combat . | . . . . . Combat . | . . . . . Robot Hacks Applied . | . . . . . Relay Couplers Released . | . . . . . Fabnet Peak Effective % . | . . . . . Robots Rewired . | . . . . . Allies Hacked . | . . . . . Hacks Repelled . | . . . . . Allies | -11 -10 -10 -10 -9 -------- Run | Jun Mat Min Exi Min Total Allies . | . . . . . Largest Group . | . . . . . Highest-Rated Group . | . . . . . Highest-Rated Ally . | . . . . . Total Orders . | . . . . . Ally Attacks . | . . . . . Total Damage . | . . . . . Kills . | . . . . . Allies Corrupted . | . . . . . Allies Melted . | . . . . . Intel | -11 -10 -10 -10 -9 ------- Run | Jun Mat Min Exi Min Robot Analysis Total . | . . . . . Derelict Logs Recovered 1 | . . 1 . . Drone Launches . | . . . . . Drone Recoveries . | . . . . . Exploration | -11 -10 -10 -10 -9 ------------- Run | Jun Mat Min Exi Min Turns Passed 2392 | 53 746 425 1104 64 Spaces Moved 1669 | 32 488 319 822 8 Core . | . . . . . Treads . | . . . . . Legs 1669 | 32 488 319 822 8 Wheels . | . . . . . Hover . | . . . . . Flight . | . . . . . Fastest Speed 120 | 120 120 120 120 120 Average Speed 125 | 120 120 120 131 120 Slowest Speed 190 | 120 120 120 190 120 Overloaded Moves . | . . . . . Propulsion Burnouts . | . . . . . Robots Hopped . | . . . . . Cave-ins Triggered . | . . . . . Exploration Rate (%) 50 | 2 71 77 95 6 Regions Visited 4 Branch Regions 3 Pre-discovered Areas 1 | . . . 1 . Known Exits Taken . | . . . . . Unknown Exits Taken 4 | 1 1 1 1 . Scrap Searched 3 | . . 3 . . Spaces Dug 9 | . . 7 . 2 Terrain Destroyed 80 | . 6 26 . 48 Melee . | . . . . . Projectile 10 | . . 7 . 3 AOE 70 | . 6 19 . 45 Terrain Rammed . | . . . . . Walls Destroyed . | . . . . . Machines Disabled . | . . . . . Actions | -11 -10 -10 -10 -9 --------- Run | Jun Mat Min Exi Min Total 1829 | 37 578 335 848 31 Wait 33 | . 25 1 7 . Move 1665 | 31 487 318 821 8 Hop . | . . . . . Pick Up 15 | . 8 1 6 . Fast Attach 3 | 1 2 . . . Attach 5 | . 1 . 1 3 Detach 2 | . . . 2 . Swap 12 | . 7 3 1 1 Drop 14 | . 6 2 6 . Fire 76 | 5 42 10 . 19 Melee . | . . . . . Ram . | . . . . . Kick . | . . . . . Crush . | . . . . . Escape Stasis . | . . . . . Rewire 4 | . . . 4 . Trap . | . . . . . Miscellaneous . | . . . . . Route ------- -11/Junkyard -10/Materials (discovered 4 exits: [*Mat x2] / [*Min x2]) -10/Mines (discovered 3 exits: [*Mat x2] / *Exi) -10/Exiles (discovered 2 exits: [*Min x2]) -9/Mines History --------- Turn | Location | Event 4 | -11/Junkyard | Discovered new exit (range 3) 54 | -11/Junkyard | Entered Materials 279 | -10/Materials | Discovered new exit (range 16) 300 | -10/Materials | Build established: Mutant 490 | -10/Materials | Discovered new exit (range 12) 514 | -10/Materials | Repaired Med. Laser 712 | -10/Materials | Discovered new exit (range 17) 759 | -10/Materials | Discovered new exit (range 6) 800 | -10/Materials | Entered Mines 841 | -10/Mines | Met a Derelict bent on vengeance 847 | -10/Mines | Discovered new exit (range 7) 865 | -10/Mines | Received a Rocket Launcher from a helpful Derelict 1154 | -10/Mines | Learned Materials emergency access door positions 1160 | -10/Mines | Discovered new exit (range 6) 1218 | -10/Mines | Deemed a non-threat by the Exiles lab entrance 1219 | -10/Mines | Discovered new exit (range 5) 1225 | -10/Mines | Entered Exiles 1241 | -10/Exiles | Discovered new exit (range 16) 1257 | -10/Exiles | Met 8R-AWN 1276 | -10/Exiles | Met EX-HEX 1354 | -10/Exiles | Met EX-DEC 1384 | -10/Exiles | Visited The Gauntlet 1590 | -10/Exiles | Learned location of Zion (-6) 1648 | -10/Exiles | Discovered new exit (range 14) 1730 | -10/Exiles | Met EX-BIN 1785 | -10/Exiles | Aligned with FarCom system 1786 | -10/Exiles | Given EX-Vault access code 1886 | -10/Exiles | Opened EX-Vault 1900 | -10/Exiles | Found Prototype Device 1904 | -10/Exiles | Identified PSU Rigger 1905 | -10/Exiles | Found Prototype Device 1910 | -10/Exiles | Identified Cloak of Protection 1913 | -10/Exiles | Found Prototype Ballistic Cannon 1916 | -10/Exiles | Identified AWS/Autocannon 2019 | -10/Exiles | Warned to stay clear of 0b10 Research branches 2329 | -10/Exiles | Stole two prototypes: Cloak of Protection, PSU Rigger 2329 | -10/Exiles | Entered Mines 2330 | -9/Mines | Assembled infested the area 2348 | -9/Mines | Core integrity fell below 50% 2374 | -9/Mines | Core integrity fell below 20% 2393 | -9/Mines | Destroyed by as-75719 with Assembled Blade Last Messages --------------- 02353_ as-88058 destroyed. 02353_ Destroyed Asb. Hover Unit. 02353_ as-79650 destroyed. [Achievement: Quick And Dirty] 02356_ The unstable cave ceiling collapses. 02357_ Aluminum Leg severed. 02359_ as-11769 knocked back. 02361_ The unstable cave ceiling collapses. 02361_ as-11769 destroyed. 02364_ Rocket Launcher destroyed. 02365_ The unstable cave ceiling collapses. 02368_ as-02746 destroyed. 02371_ The unstable cave ceiling collapses. 02374_ as-49393 destroyed. 02376_ The unstable cave ceiling collapses. 02377_ as-91841 knocked back. 02378_ The unstable cave ceiling collapses. 02383_ as-91841 destroyed. 02389_ The unstable cave ceiling collapses. 02391_ Ion Engine destroyed. Map ----- +----------------------------------------------------+ | ?????????????????????????????????????????????????? | | ?????????????????????????????????????????????????? | | ?????????????????????????????????????????????????? | | ?????????????????????????????????????????????????? | | ?????????????????????????????????????????????????? | | ?????????????????????????????????????????????????? | | ?????????????????????????????????????????????????? | | ?????????????????????????????????????????????????? | | ?????????????????????????????????????????????????? | | ?????????????????????????????????????????????????? | | ?????????????????????????????????????????????????? | | ?????????????????????????????????????????????????? | | ?????????????????????????????????????????????????? | | ?????????????????????????????????????????????????? | | ?????????????????????????????????#???????????????? | | ???????????????????????????????? ##??????????????? | | ??????????????????????????????? ##?????????????? | | ??????????????????????????????? ## ???????????? | | ?????????????????????????????? ??????????? | | ????????????????????????????? ??????????? | | ???????????????????????????##% ???????????? | | ??????????????????????##### #????????????? | | ?????????????????????## # "#????????????? | | ?????????????????????# % ##?????????????? | | ?????????????????????# # # #?????????????? | | ?????????????????????# @ a #???????????????? | | ????????????????????## a# ## ##???????????????? | | ????????????????????# #???????????????? | | ????????????????????# ;#% *=#???????????????? | | ????????????????????# #####!%##???????????????? | | ????????????????????# #?????##????????????????? | | ????????????????????# #???????????????????????? | | ????????????????????## ##???????????????????????? | | ?????????????????????###?????????????????????????? | | ?????????????????????????????????????????????????? | | ?????????????????????????????????????????????????? | | | | | | | | | | | | | | | | | | | | | | | | | | | | | +----------------------------------------------------+ Best States ------------- Heat Dissipation 25 Energy Generation 10 Energy Capacity 250 Matter Stores 300 Matter Capacity 300 Sight Range 18 Terrain Scan Density 10 Cloak Strength 5 Evasion (%) 55 Item Schematics ----------------- None Robot Schematics ------------------ None Fabricated ------------ Nothing Alien Tech Used ----------------- None Achievements -------------- Librarian Quick And Dirty Challenges ------------ None Game ------ Seed FlakClaymoresDeconstructor Manual? 0 Play Time 00:50:49 Cumulative 26.0 hours Start 2023.07.23 @ 19:53:55 End 2023.07.23 @ 20:58:28 Sessions 1 Manual Loads 0 Difficulty Rogue Special Mode None Game No. 18 Rogue 18 Adventurer 0 Explorer 0 Win Type - Total 0 Types 0/0/0/0/0/0/0/0/0 Lore% 20 Gallery% 16 Achievement% 15 Wizard Run 0 Options --------- ASCII 0 Keyboard 1 Movement Numpad Keybinds 0 Fullscreen 1 Font 36/X11 Map View 76x50 Tactical HUD 1 Map Filters NONE Filters NONE Steam 1 RUN: 45c1319e-ad97-4d0d-94cd-87e58c92b7cf